[Event "Cracovia Festival-A 2023"]
[Site "Krakow"]
[Date "2023.12.30"]
[Round "4.6"]
[White "Akbas, Umut Ata"]
[Black "Baumegger, Siegfried"]
[Result "1-0"]
[ECO "E41"]
[WhiteElo "2446"]
[BlackElo "2388"]
[Annotator "RC"]
[PlyCount "141"]
[EventDate "2023.12.24"]
[EventType "swiss"]
[EventCountry "POL"]
[SourceTitle "playchess.com"]
[Source "ChessBase"]
[SourceQuality "1"]
[TimeControl "40/5400+30:1800+30"]

1. d4 {[%emt 0:09:11]} Nf6 {[%emt 0:00:14]} 2. c4 {[%emt 0:00:23]} e6 {[%emt 0:00:07]} 3. Nc3 {[%emt 0:00:09]} Bb4 {[%emt 0:00:13]} 4. e3 {[%emt 0:00:09]} c5 {[%emt 0:00:35]} 5. Bd3 {[%emt 0:00:53]} Nc6 {[%emt 0:05:04]} 6. Nf3 {[%emt 0:01:53]} O-O {[%emt 0:01:16]} 7. O-O {[%emt 0:00:22]} Bxc3 {[%emt 0:00:14]} 8. bxc3 {[%emt 0:00:08]} d6 {[%emt 0:00:06]} 9. e4 {[%emt 0:10:30]} e5 {[%emt 0:00:24]} 10. h3 {[%emt 0:02:47]} b6 {[%emt 0:10:49]} 11. Be3 {[%emt 0:04:37]} h6 {[%emt 0:02:48]} 12. d5 {[%emt 0:03:36]} Ne7 {[%emt 0:00:29]} 13. Nh4 {[%emt 0:03:52]} g5 {[%emt 0:19:07]} 14. Nf3 {[%emt 0:12:24]} Ng6 {[%emt 0:08:03]} 15. h4 {[%emt 0:07:29]} Bg4 {[%emt 0:13:08]} 16. hxg5 {[%emt 0:04:52]} Nh5 {[%emt 0:00:32]} 17. g3 {[%emt 0:05:25]} Nhf4 {[%emt 0:07:30]} 18. gxf4 {[%emt 0:02:45]} exf4 {[%emt 0:00:15]} 19. Bc1 {[%emt 0:05:27]} Ne5 {[%emt 0:08:18]} 20. Be2 {[%emt 0:00:15]} Bxf3 {[%emt 0:02:17]} 21. Bxf3 {[%emt 0:02:21]} Qxg5+ {[%emt 0:00:18]} 22. Bg2 {[%emt 0:10:17]} Kh8 {[%emt 0:00:53]} 23. f3 {[%emt 0:00:57]} Rg8 {[%emt 0:00:38]} 24. Rf2 {[%emt 0:01:05]} Rg6 {[%emt 0:02:18]} 25. Kf1 {[%emt 0:04:51]} Rag8 {[%emt 0:02:04]} 26. Bh3 {[%emt 0:04:29]} Qh5 {[%emt 0:04:38]} 27. Ke2 {[%emt 0:01:51]} Qxh3 {[%emt 0:00:27]} 28. Bxf4 {[%emt 0:00:03]} Rg2 {[%emt 0:06:42]} 29. Bxe5+ {[%emt 0:00:02]} dxe5 {[%emt 0:00:03]} 30. Qh1 {[%emt 0:00:05]} Rxf2+ {[%emt 0:00:39]} 31. Kxf2 {[%emt 0:00:07]} Qg3+ {[%emt 0:00:43]} 32. Ke2 {[%emt 0:00:13]} Kh7 {[%emt 0:02:33]} 33. a4 {[%emt 0:02:19]} f5 {[%emt 0:00:26]} 34. exf5 {[%emt 0:01:04]} Qf4 {[%emt 0:00:33]} 35. Rd1 {[%emt 0:00:30]} Qxc4+ {[%emt 0:01:23]} 36. Kf2 {[%emt 0:00:03]} Qxa4 {[%emt 0:01:13]} 37. Rd2 {[%emt 0:00:39]} Qf4 {[%emt 0:00:10]} 38. Ke2 {[%emt 0:00:21]} Qc4+ {[%emt 0:01:20]} 39. Ke3 {[%emt 0:00:41]} Qxc3+ {[%emt 0:00:36]} 40. Rd3 {[%emt 0:00:00]} Qc4 {[%emt 0:00:00]} 41. Qh2 {[%emt 0:10:37]} Qb4 {[%emt 0:10:44]} 42. Rd2 {[%emt 0:04:20]} Qc3+ {[%emt 0:11:21]} 43. Ke4 {[%emt 0:02:07]} Qb4+ {[%emt 0:02:06]} 44. Ke3 {[%emt 0:04:17]} c4 {[%emt 0:02:39]} 45. Qxe5 {[%emt 0:02:55]} Qc5+ {[%emt 0:00:38]} 46. Kf4 {[%emt 0:04:52]} Qg1 {[%emt 0:00:46]} 47. Ra2 {[%emt 0:04:00]} Qg3+ {[%emt 0:02:56]} 48. Ke4 {[%emt 0:00:03]} Qe1+ {[%emt 0:00:17]} 49. Kd4 {[%emt 0:01:32]} Qd1+ {[%emt 0:00:23]} 50. Kxc4 {[%emt 0:00:52]} Rc8+ {[%emt 0:00:54]} 51. Kb4 {[%emt 0:00:01]} a5+ {[%emt 0:02:28]} 52. Kb5 {[%emt 0:00:06]} Qd3+ {[%emt 0:01:15]} 53. Kxb6 {[%emt 0:00:17]} Qb3+ {[%emt 0:00:27]} 54. Ka7 {[%emt 0:00:12]} Qb4 {[%emt 0:00:39]} 55. Re2 {[%emt 0:01:54]} Rg8 {[%emt 0:00:48]} 56. Rc2 {[%emt 0:00:35]} Rg7+ {[%emt 0:00:19]} 57. Ka6 {[%emt 0:00:39]} Qb7+ {[%emt 0:00:36]} 58. Kxa5 Re7 {[%emt 0:00:36]} 59. Qd4 {[%emt 0:00:57]} Qb8 {[%emt 0:00:29]} 60. Rc6 {[%emt 0:00:17]} Ra7+ {[%emt 0:00:18]} 61. Ra6 {[%emt 0:00:03]} Qd8+ {[%emt 0:00:35]} 62. Kb5 {[%emt 0:00:24]} Qe8+ {[%emt 0:00:27]} 63. Rc6 {[%emt 0:00:26]} Qb8+ {[%emt 0:00:25]} 64. Rb6 {[%emt 0:00:24]} Qe8+ {[%emt 0:00:05]} 65. Kc4 {[%emt 0:01:28]} Ra4+ {[%emt 0:00:46]} 66. Rb4 {[%emt 0:00:05]} Qe2+ {[%emt 0:00:11]} 67. Kc5 {[%emt 0:00:13]} Ra7 {[%emt 0:00:49]} 68. d6 {[%emt 0:00:52]} Qxf3 {[%emt 0:00:22]} 69. Qe4 {[%emt 0:00:22]} Qc3+ {[%emt 0:00:15]} 70. Kb6 {[%emt 0:00:53]} Rf7 {[%emt 0:01:17]} 71. f6+ {[%emt 0:00:15]} 1-0

[Event "Cracovia Festival-A 2023"]
[Site "Krakow"]
[Date "2023.12.30"]
[Round "4.7"]
[White "Schwabeneder, Florian"]
[Black "Akhvlediani, Irakli"]
[Result "1/2-1/2"]
[ECO "A36"]
[WhiteElo "2402"]
[BlackElo "2359"]
[Annotator "ChessBase"]
[PlyCount "37"]
[EventDate "2023.12.24"]
[EventType "swiss"]
[EventCountry "POL"]
[SourceTitle "playchess.com"]
[Source "ChessBase"]
[SourceQuality "1"]
[TimeControl "40/5400+30:1800+30"]

1. c4 {[%emt 0:00:05]} g6 {[%emt 0:03:00]} 2. g3 {[%emt 0:01:11]} Bg7 {[%emt 0:00:04]} 3. Bg2 {[%emt 0:00:13]} c5 {[%emt 0:00:09]} 4. Nc3 {[%emt 0:01:05]} Nc6 {[%emt 0:00:04]} 5. d3 {[%emt 0:01:52]} e6 {[%emt 0:00:27]} 6. h4 {[%emt 0:01:29]} h6 {[%emt 0:01:18]} 7. Bd2 {[%emt 0:06:08]} Nge7 {[%emt 0:00:58]} 8. Nh3 {[%emt 0:19:17]} e5 {[%emt 0:10:36]} 9. a3 {[%emt 0:10:15]} d6 {[%emt 0:02:22]} 10. Rb1 {[%emt 0:02:56]} a5 {[%emt 0:15:52]} 11. e3 {[%emt 0:06:29]} O-O {[%emt 0:20:20]} 12. O-O {[%emt 0:11:10]} Bd7 {[%emt 0:16:42]} 13. Kh2 {[%emt 0:02:50]} Rb8 {[%emt 0:04:36]} 14. Ng1 {[%emt 0:13:41]} Be6 {[%emt 0:02:05]} 15. Qb3 {[%emt 0:01:05]} f5 {[%emt 0:02:23]} 16. Nh3 {[%emt 0:04:07]} Qd7 {[%emt 0:04:56]} 17. f4 {[%emt 0:00:59]} exf4 {[%emt 0:00:49]} 18. gxf4 {[%emt 0:02:40]} Bf7 {[%emt 0:08:18]} 19. Nd5 {[%emt 0:04:23]} 1/2-1/2

[Event "Cracovia Festival-A 2023"]
[Site "Krakow"]
[Date "2023.12.30"]
[Round "4.8"]
[White "Balint, Peter"]
[Black "Dzida, Kamil"]
[Result "0-1"]
[ECO "C90"]
[WhiteElo "2187"]
[BlackElo "2396"]
[Annotator "RC"]
[PlyCount "116"]
[EventDate "2023.12.24"]
[EventType "swiss"]
[EventCountry "POL"]
[SourceTitle "playchess.com"]
[Source "ChessBase"]
[SourceQuality "1"]
[TimeControl "40/5400+30:1800+30"]

1. e4 {[%emt 0:00:03]} e5 {[%emt 0:00:06]} 2. Nf3 {[%emt 0:00:05]} Nc6 {[%emt 0:00:04]} 3. Bb5 {[%emt 0:01:11]} a6 {[%emt 0:02:10]} 4. Ba4 {[%emt 0:00:06]} Nf6 {[%emt 0:00:05]} 5. O-O {[%emt 0:00:47]} Be7 {[%emt 0:00:09]} 6. d3 {[%emt 0:03:15]} b5 {[%emt 0:00:05]} 7. Bb3 {[%emt 0:00:06]} d6 {[%emt 0:00:07]} 8. c3 {[%emt 0:01:36]} O-O {[%emt 0:00:20]} 9. Re1 {[%emt 0:01:28]} Na5 {[%emt 0:02:17]} 10. Bc2 {[%emt 0:00:10]} c5 {[%emt 0:00:06]} 11. Nbd2 {[%emt 0:05:36]} Qc7 {[%emt 0:00:29]} 12. Nf1 {[%emt 0:00:42]} Nc6 {[%emt 0:03:00]} 13. Ng3 {[%emt 0:06:14]} Re8 {[%emt 0:01:04]} 14. h3 {[%emt 0:02:26]} g6 {[%emt 0:02:28]} 15. Bg5 {[%emt 0:15:26]} Be6 {[%emt 0:04:40]} 16. d4 {[%emt 0:04:00]} cxd4 {[%emt 0:00:16]} 17. cxd4 {[%emt 0:00:08]} Nxd4 {[%emt 0:00:20]} 18. Nxd4 {[%emt 0:00:13]} exd4 {[%emt 0:00:05]} 19. Qxd4 {[%emt 0:01:11]} Qxc2 {[%emt 0:00:18]} 20. Bxf6 {[%emt 0:00:53]} Qc5 {[%emt 0:00:24]} 21. a3 {[%emt 0:05:58]} Rac8 {[%emt 0:06:38]} 22. Rad1 {[%emt 0:09:28]} Bxf6 {[%emt 0:03:09]} 23. Qxf6 {[%emt 0:00:13]} Qe5 {[%emt 0:00:01]} 24. Qh4 {[%emt 0:07:27]} Rc2 {[%emt 0:06:59]} 25. b4 {[%emt 0:02:41]} Bc4 {[%emt 0:03:32]} 26. Re3 {[%emt 0:02:00]} Ra2 {[%emt 0:06:29]} 27. Nf5 {[%emt 0:07:00]} Ra1 {[%emt 0:10:02]} 28. Nh6+ {[%emt 0:10:10]} Kg7 {[%emt 0:03:08]} 29. Rxa1 {[%emt 0:00:19]} Qxa1+ {[%emt 0:00:02]} 30. Kh2 {[%emt 0:00:12]} Be6 {[%emt 0:00:18]} 31. f4 {[%emt 0:11:09]} Qd4 {[%emt 0:00:23]} 32. Re1 {[%emt 0:00:37]} Bd7 {[%emt 0:01:59]} 33. f5 {[%emt 0:01:31]} Qe5+ {[%emt 0:01:43]} 34. Kh1 {[%emt 0:00:08]} Bxf5 {[%emt 0:01:10]} 35. Rf1 {[%emt 0:02:48]} Be6 {[%emt 0:02:39]} 36. Rf2 {[%emt 0:00:41]} Rc8 {[%emt 0:03:18]} 37. Rf1 {[%emt 0:00:22]} Rc4 {[%emt 0:05:26]} 38. Ng4 {[%emt 0:00:37]} Bxg4 {[%emt 0:00:22]} 39. Qxg4 {[%emt 0:00:04]} Rxe4 {[%emt 0:02:06]} 40. Qf3 {[%emt 0:00:00]} Qe6 {[%emt 0:00:00]} 41. Qc3+ {[%emt 0:09:03]} Re5 {[%emt 0:04:43]} 42. Qd4 {[%emt 0:00:58]} Qc4 {[%emt 0:05:49]} 43. Qf2 {[%emt 0:08:13]} Kg8 {[%emt 0:00:02]} 44. Qf6 {[%emt 0:03:44]} Qe6 {[%emt 0:00:03]} 45. Qd8+ {[%emt 0:00:32]} Kg7 {[%emt 0:00:02]} 46. Qh4 {[%emt 0:01:25]} Re4 {[%emt 0:00:50]} 47. Qf2 {[%emt 0:00:58]} d5 {[%emt 0:01:37]} 48. Rd1 {[%emt 0:01:16]} d4 {[%emt 0:05:41]} 49. Qd2 {[%emt 0:01:54]} Qe5 {[%emt 0:00:14]} 50. Qf2 {[%emt 0:00:23]} Re2 {[%emt 0:00:47]} 51. Qh4 {[%emt 0:00:09]} Qe4 {[%emt 0:01:24]} 52. Qg3 {[%emt 0:00:16]} Re3 {[%emt 0:00:08]} 53. Qf2 {[%emt 0:01:02]} Rxh3+ {[%emt 0:00:10]} 54. Kg1 {[%emt 0:00:05]} Re3 {[%emt 0:00:18]} 55. Rf1 {[%emt 0:00:10]} Qe6 {[%emt 0:00:15]} 56. Qf4 {[%emt 0:00:42]} Re4 {[%emt 0:00:09]} 57. Qc7 {[%emt 0:00:18]} Rh4 {[%emt 0:00:38]} 58. Qc5 {[%emt 0:02:31]} Qe3+ {[%emt 0:00:33]} 0-1

[Event "Cracovia Festival-A 2023"]
[Site "Krakow"]
[Date "2023.12.30"]
[Round "4.9"]
[White "Podolskyi, Mykhailo"]
[Black "Cukrowski, Filip"]
[Result "1/2-1/2"]
[ECO "D37"]
[WhiteElo "2177"]
[BlackElo "2402"]
[Annotator "RC"]
[PlyCount "58"]
[EventDate "2023.12.24"]
[EventType "swiss"]
[EventCountry "POL"]
[SourceTitle "playchess.com"]
[Source "ChessBase"]
[SourceQuality "1"]
[TimeControl "40/5400+30:1800+30"]

1. d4 {[%emt 0:01:44]} Nf6 {[%emt 0:01:01]} 2. c4 {[%emt 0:00:42]} e6 {[%emt 0:01:02]} 3. Nf3 {[%emt 0:00:18]} d5 {[%emt 0:00:11]} 4. Nc3 {[%emt 0:02:17]} dxc4 {[%emt 0:00:36]} 5. e3 {[%emt 0:03:22]} a6 {[%emt 0:00:08]} 6. a4 {[%emt 0:00:54]} b6 {[%emt 0:13:05]} 7. Bxc4 {[%emt 0:01:47]} Bb7 {[%emt 0:00:06]} 8. O-O {[%emt 0:01:14]} c5 {[%emt 0:00:25]} 9. Qe2 {[%emt 0:05:48]} Nbd7 {[%emt 0:00:08]} 10. Rd1 {[%emt 0:09:38]} Qb8 {[%emt 0:02:31]} 11. b3 {[%emt 0:08:53]} Be7 {[%emt 0:02:51]} 12. Bb2 {[%emt 0:05:11]} O-O {[%emt 0:00:35]} 13. Rac1 {[%emt 0:01:40]} Rd8 {[%emt 0:00:42]} 14. h3 {[%emt 0:01:21]} Nf8 {[%emt 0:13:06]} 15. Ne5 {[%emt 0:08:00]} Ng6 {[%emt 0:01:45]} 16. Nxg6 {[%emt 0:08:12]} hxg6 {[%emt 0:00:02]} 17. Ba3 {[%emt 0:00:26]} Qc7 {[%emt 0:17:36]} 18. dxc5 {[%emt 0:03:00]} Rxd1+ {[%emt 0:01:24]} 19. Nxd1 {[%emt 0:09:23]} Bxc5 {[%emt 0:16:40]} 20. Bd3 {[%emt 0:03:31]} a5 {[%emt 0:02:51]} 21. Bxc5 {[%emt 0:03:04]} bxc5 {[%emt 0:00:01]} 22. Qc2 {[%emt 0:00:19]} Rd8 {[%emt 0:00:35]} 23. Nc3 {[%emt 0:05:31]} Qe5 {[%emt 0:03:28]} 24. Bf1 {[%emt 0:05:07]} g5 {[%emt 0:00:32]} 25. Be2 {[%emt 0:02:06]} g6 {[%emt 0:02:49]} 26. Nb5 {[%emt 0:02:13]} Ne4 {[%emt 0:04:41]} 27. Bd3 {[%emt 0:00:57]} Nf6 {[%emt 0:06:01]} 28. Be2 {[%emt 0:00:19]} Ne4 {[%emt 0:01:04]} 29. Bd3 {[%emt 0:01:31]} Nf6 {[%emt 0:01:06]} 1/2-1/2

[Event "Cracovia Festival-A 2023"]
[Site "Krakow"]
[Date "2023.12.30"]
[Round "4.10"]
[White "Kozak, Antoni"]
[Black "Ashwath, R.."]
[Result "1/2-1/2"]
[ECO "C72"]
[WhiteElo "2442"]
[BlackElo "2284"]
[Annotator "RC"]
[PlyCount "92"]
[EventDate "2023.12.24"]
[EventType "swiss"]
[EventCountry "POL"]
[SourceTitle "playchess.com"]
[Source "ChessBase"]
[SourceQuality "1"]
[TimeControl "40/5400+30:1800+30"]

1. e4 {[%emt 0:00:13]} e5 {[%emt 0:00:32]} 2. Nf3 {[%emt 0:00:10]} Nc6 {[%emt 0:00:03]} 3. Bb5 {[%emt 0:00:27]} a6 {[%emt 0:00:27]} 4. Ba4 {[%emt 0:00:35]} d6 {[%emt 0:00:12]} 5. O-O {[%emt 0:01:56]} Bd7 {[%emt 0:00:12]} 6. d4 {[%emt 0:02:51]} b5 {[%emt 0:01:37]} 7. Bb3 {[%emt 0:00:41]} Nxd4 {[%emt 0:00:25]} 8. Nxd4 {[%emt 0:00:19]} exd4 {[%emt 0:00:02]} 9. c3 {[%emt 0:00:08]} d3 {[%emt 0:04:37]} 10. Qxd3 {[%emt 0:19:14]} Nf6 {[%emt 0:04:29]} 11. Qg3 {[%emt 0:03:44]} Nh5 {[%emt 0:13:01]} 12. Qf3 {[%emt 0:03:25]} Nf6 {[%emt 0:00:28]} 13. Qg3 {[%emt 0:00:11]} Nh5 {[%emt 0:00:05]} 14. Qf3 {[%emt 0:04:07]} Nf6 {[%emt 0:00:03]} 15. Bf4 {[%emt 0:04:17]} Be7 {[%emt 0:06:20]} 16. Nd2 {[%emt 0:01:47]} O-O {[%emt 0:01:53]} 17. h3 {[%emt 0:00:09]} Be6 {[%emt 0:09:39]} 18. Rad1 {[%emt 0:03:53]} Nd7 {[%emt 0:04:01]} 19. Qg3 {[%emt 0:01:14]} Bh4 {[%emt 0:13:56]} 20. Qe3 {[%emt 0:07:21]} Bf6 {[%emt 0:02:21]} 21. Nf3 {[%emt 0:01:19]} Bxb3 {[%emt 0:01:21]} 22. axb3 {[%emt 0:00:04]} Re8 {[%emt 0:00:14]} 23. Nd4 {[%emt 0:04:32]} Bxd4 {[%emt 0:02:43]} 24. cxd4 {[%emt 0:01:29]} Nf6 {[%emt 0:00:20]} 25. f3 {[%emt 0:03:00]} Nd5 {[%emt 0:00:25]} 26. Qd2 {[%emt 0:00:14]} Nxf4 {[%emt 0:00:06]} 27. Qxf4 {[%emt 0:00:02]} c6 {[%emt 0:02:31]} 28. Rf2 {[%emt 0:02:56]} a5 {[%emt 0:08:13]} 29. Rc2 {[%emt 0:02:18]} Qd7 {[%emt 0:01:26]} 30. Rdc1 {[%emt 0:02:23]} Rec8 {[%emt 0:02:40]} 31. Qe3 {[%emt 0:01:40]} h6 {[%emt 0:03:11]} 32. Rc3 {[%emt 0:07:59]} Rc7 {[%emt 0:03:22]} 33. Kh2 {[%emt 0:00:32]} Rac8 {[%emt 0:01:22]} 34. f4 {[%emt 0:03:39]} c5 {[%emt 0:07:00]} 35. dxc5 {[%emt 0:01:25]} dxc5 {[%emt 0:00:18]} 36. Rd3 {[%emt 0:05:31]} Qe7 {[%emt 0:01:02]} 37. Rd5 {[%emt 0:00:16]} a4 {[%emt 0:03:34]} 38. e5 {[%emt 0:01:25]} axb3 {[%emt 0:00:46]} 39. Qxb3 {[%emt 0:00:04]} Rd7 {[%emt 0:02:58]} 40. f5 {[%emt 0:00:00]} Rxd5 {[%emt 0:00:00]} 41. Qxd5 {[%emt 0:06:10]} Qh4 {[%emt 0:08:20]} 42. Rxc5 {[%emt 0:08:19]} Qf4+ {[%emt 0:01:22]} 43. Kh1 {[%emt 0:00:06]} Qf1+ {[%emt 0:00:19]} 44. Kh2 {[%emt 0:00:03]} Qf4+ {[%emt 0:00:10]} 45. Kh1 {[%emt 0:00:02]} Qf1+ {[%emt 0:00:06]} 46. Kh2 {[%emt 0:00:03]} Qf4+ {[%emt 0:00:05]} 1/2-1/2

[Event "Cracovia Festival-A 2023"]
[Site "Krakow"]
[Date "2023.12.30"]
[Round "4.11"]
[White "Golubka, Petro"]
[Black "Ernst, Robert"]
[Result "1/2-1/2"]
[ECO "D10"]
[WhiteElo "2440"]
[BlackElo "2271"]
[Annotator "ChessBase"]
[PlyCount "83"]
[EventDate "2023.12.24"]
[EventType "swiss"]
[EventCountry "POL"]
[SourceTitle "playchess.com"]
[Source "ChessBase"]
[SourceQuality "1"]
[TimeControl "40/5400+30:1800+30"]

1. d4 {[%emt 0:10:42]} d5 {[%emt 0:00:17]} 2. c4 {[%emt 0:00:10]} c6 {[%emt 0:00:07]} 3. cxd5 {[%emt 0:01:37]} cxd5 {[%emt 0:00:09]} 4. Bf4 {[%emt 0:00:06]} Nc6 {[%emt 0:01:22]} 5. e3 {[%emt 0:00:06]} Nf6 {[%emt 0:00:10]} 6. Nc3 {[%emt 0:00:16]} Bf5 {[%emt 0:00:19]} 7. Qb3 {[%emt 0:00:52]} Na5 {[%emt 0:00:38]} 8. Qa4+ {[%emt 0:00:04]} Bd7 {[%emt 0:00:12]} 9. Qc2 {[%emt 0:00:03]} Rc8 {[%emt 0:03:07]} 10. Bd3 {[%emt 0:00:52]} e6 {[%emt 0:03:41]} 11. Nf3 {[%emt 0:00:28]} Nc4 {[%emt 0:01:54]} 12. O-O {[%emt 0:00:19]} Be7 {[%emt 0:03:54]} 13. Bxc4 {[%emt 0:06:11]} Rxc4 {[%emt 0:14:14]} 14. Ne5 {[%emt 0:00:11]} Rc8 {[%emt 0:00:04]} 15. Qb3 {[%emt 0:00:23]} Bc6 {[%emt 0:01:58]} 16. Rfc1 {[%emt 0:00:45]} O-O {[%emt 0:00:53]} 17. Nxc6 {[%emt 0:01:42]} bxc6 {[%emt 0:00:36]} 18. Na4 {[%emt 0:04:09]} Nd7 {[%emt 0:01:24]} 19. Qb7 {[%emt 0:00:53]} c5 {[%emt 0:02:22]} 20. dxc5 {[%emt 0:03:16]} Nxc5 {[%emt 0:00:23]} 21. Nxc5 {[%emt 0:00:21]} Bxc5 {[%emt 0:00:21]} 22. b4 {[%emt 0:00:31]} Qb6 {[%emt 0:03:32]} 23. Qxb6 {[%emt 0:01:48]} Bxb6 {[%emt 0:00:03]} 24. a4 {[%emt 0:00:22]} a6 {[%emt 0:02:43]} 25. Kf1 {[%emt 0:05:23]} f6 {[%emt 0:01:04]} 26. a5 {[%emt 0:02:48]} Ba7 {[%emt 0:00:18]} 27. Bd6 {[%emt 0:00:29]} Rfe8 {[%emt 0:11:45]} 28. Ke2 {[%emt 0:00:31]} Kf7 {[%emt 0:07:30]} 29. Rab1 {[%emt 0:01:46]} e5 {[%emt 0:02:34]} 30. b5 {[%emt 0:03:53]} axb5 {[%emt 0:05:00]} 31. Rxc8 {[%emt 0:02:48]} Rxc8 {[%emt 0:00:01]} 32. Rxb5 {[%emt 0:00:04]} Ke6 {[%emt 0:00:45]} 33. Bb4 {[%emt 0:05:29]} Rc7 {[%emt 0:01:55]} 34. g4 {[%emt 0:02:40]} g6 {[%emt 0:04:00]} 35. a6 {[%emt 0:01:36]} f5 {[%emt 0:05:36]} 36. gxf5+ {[%emt 0:02:15]} gxf5 {[%emt 0:00:01]} 37. Ra5 {[%emt 0:02:47]} Bb6 {[%emt 0:09:55]} 38. Ra3 {[%emt 0:01:22]} Ba7 {[%emt 0:02:39]} 39. Rc3 {[%emt 0:01:44]} Kd7 {[%emt 0:01:48]} 40. Rd3 {[%emt 0:00:00]} Ke6 {[%emt 0:00:00]} 41. Rc3 {[%emt 0:04:13]} Kd7 {[%emt 0:03:15]} 42. Rd3 {[%emt 0:04:45]} 1/2-1/2

[Event "Cracovia Festival-A 2023"]
[Site "Krakow"]
[Date "2023.12.30"]
[Round "4.12"]
[White "Pajeken, Jakob Leon"]
[Black "Damia, Angelo"]
[Result "1-0"]
[ECO "B02"]
[WhiteElo "2428"]
[BlackElo "2251"]
[Annotator "ChessBase"]
[PlyCount "49"]
[EventDate "2023.12.24"]
[EventType "swiss"]
[EventCountry "POL"]
[SourceTitle "playchess.com"]
[Source "ChessBase"]
[SourceQuality "1"]
[TimeControl "40/5400+30:1800+30"]

1. e4 {[%emt 0:00:10]} Nf6 {[%emt 0:02:42]} 2. e5 {[%emt 0:00:49]} Ng8 {[%emt 0:01:06]} 3. d4 {[%emt 0:00:16]} d6 {[%emt 0:00:04]} 4. Nf3 {[%emt 0:00:31]} dxe5 {[%emt 0:00:22]} 5. Nxe5 {[%emt 0:00:19]} Nd7 {[%emt 0:00:45]} 6. Qf3 {[%emt 0:01:14]} Nxe5 {[%emt 0:01:39]} 7. dxe5 {[%emt 0:01:54]} e6 {[%emt 0:00:11]} 8. Nc3 {[%emt 0:02:49]} Bb4 {[%emt 0:00:56]} 9. Bd2 {[%emt 0:01:36]} Ne7 {[%emt 0:02:30]} 10. O-O-O {[%emt 0:01:29]} Bxc3 {[%emt 0:03:00]} 11. Bxc3 {[%emt 0:03:05]} Nd5 {[%emt 0:00:28]} 12. Qg3 {[%emt 0:01:30]} O-O {[%emt 0:00:45]} 13. Bb4 {[%emt 0:01:40]} Re8 {[%emt 0:00:41]} 14. c4 {[%emt 0:01:08]} Nxb4 {[%emt 0:00:07]} 15. Rxd8 {[%emt 0:00:04]} Rxd8 {[%emt 0:00:05]} 16. a3 {[%emt 0:01:11]} Nc6 {[%emt 0:00:49]} 17. Bd3 {[%emt 0:00:47]} Bd7 {[%emt 0:01:15]} 18. Rd1 {[%emt 0:03:39]} Be8 {[%emt 0:00:31]} 19. h4 {[%emt 0:01:10]} Rd4 {[%emt 0:00:31]} 20. Bxh7+ {[%emt 0:02:31]} Kxh7 {[%emt 0:00:15]} 21. Rxd4 {[%emt 0:00:05]} Nxd4 {[%emt 0:00:14]} 22. Qd3+ {[%emt 0:00:03]} Nf5 {[%emt 0:01:07]} 23. g4 {[%emt 0:00:06]} g6 {[%emt 0:01:10]} 24. gxf5 {[%emt 0:00:06]} exf5 {[%emt 0:00:04]} 25. b4 {[%emt 0:02:35]} 1-0

[Event "Cracovia Festival-A 2023"]
[Site "Krakow"]
[Date "2023.12.30"]
[Round "4.13"]
[White "Bogdanov, Egor"]
[Black "Fishchuk, Vladyslav"]
[Result "1-0"]
[ECO "C11"]
[WhiteElo "2394"]
[BlackElo "2198"]
[Annotator "RC"]
[PlyCount "85"]
[EventDate "2023.12.24"]
[EventType "swiss"]
[EventCountry "POL"]
[SourceTitle "playchess.com"]
[Source "ChessBase"]
[SourceQuality "1"]
[TimeControl "40/5400+30:1800+30"]

1. e4 {[%emt 0:00:07]} e6 {[%emt 0:00:20]} 2. d4 {[%emt 0:00:54]} d5 {[%emt 0:00:05]} 3. Nc3 {[%emt 0:02:25]} Nf6 {[%emt 0:00:05]} 4. e5 {[%emt 0:00:32]} Nfd7 5. f4 {[%emt 0:03:09]} c5 {[%emt 0:00:10]} 6. Nf3 {[%emt 0:00:37]} Nc6 {[%emt 0:00:11]} 7. Ne2 {[%emt 0:04:50]} Qb6 {[%emt 0:00:45]} 8. c3 {[%emt 0:00:25]} f6 {[%emt 0:01:45]} 9. g3 {[%emt 0:02:37]} Be7 {[%emt 0:23:28]} 10. Bh3 {[%emt 0:02:49]} a5 {[%emt 0:05:46]} 11. Bxe6 {[%emt 0:12:31]} Ndxe5 {[%emt 0:03:07]} 12. Bxd5 {[%emt 0:02:12]} Nxf3+ {[%emt 0:01:18]} 13. Bxf3 {[%emt 0:00:02]} cxd4 {[%emt 0:02:07]} 14. Nxd4 {[%emt 0:00:01]} Nxd4 {[%emt 0:02:22]} 15. cxd4 {[%emt 0:09:25]} Bh3 {[%emt 0:01:34]} 16. Qb3 {[%emt 0:07:45]} Qxd4 {[%emt 0:05:42]} 17. Be3 {[%emt 0:00:22]} a4 {[%emt 0:04:43]} 18. Qb5+ {[%emt 0:01:19]} Qd7 {[%emt 0:00:36]} 19. Qxd7+ {[%emt 0:08:39]} Bxd7 {[%emt 0:00:10]} 20. Bxb7 {[%emt 0:01:16]} Rb8 {[%emt 0:00:44]} 21. Bd5 {[%emt 0:00:08]} Rxb2 {[%emt 0:02:55]} 22. O-O {[%emt 0:00:22]} Bb4 {[%emt 0:21:05]} 23. Rab1 {[%emt 0:07:28]} a3 {[%emt 0:01:38]} 24. Bd4 {[%emt 0:00:09]} Rxb1 {[%emt 0:00:43]} 25. Rxb1 {[%emt 0:00:02]} Bd6 {[%emt 0:00:15]} 26. Rb7 {[%emt 0:01:59]} Ke7 {[%emt 0:04:51]} 27. Bc6 {[%emt 0:12:10]} Rd8 {[%emt 0:00:05]} 28. Kf2 {[%emt 0:03:20]} Ke8 {[%emt 0:01:38]} 29. Rxd7 {[%emt 0:08:22]} Rxd7 {[%emt 0:00:04]} 30. Ke3 {[%emt 0:00:09]} Ke7 {[%emt 0:00:24]} 31. Bxd7 {[%emt 0:00:03]} Kxd7 {[%emt 0:00:03]} 32. Ke4 {[%emt 0:00:59]} Kc6 {[%emt 0:00:25]} 33. g4 {[%emt 0:00:06]} Kb5 {[%emt 0:03:01]} 34. h4 {[%emt 0:05:14]} Kc4 {[%emt 0:00:18]} 35. f5 {[%emt 0:00:13]} Bg3 {[%emt 0:03:25]} 36. h5 {[%emt 0:00:25]} Bh4 {[%emt 0:00:34]} 37. Be3 {[%emt 0:00:23]} Bg3 {[%emt 0:02:03]} 38. g5 {[%emt 0:01:46]} fxg5 {[%emt 0:02:41]} 39. Bd4 {[%emt 0:00:46]} g4 {[%emt 0:04:43]} 40. Bxg7 {[%emt 0:00:00]} Bd6 {[%emt 0:00:00]} 41. f6 {[%emt 0:00:45]} g3 {[%emt 0:03:17]} 42. Kf3 {[%emt 0:00:18]} Be5 {[%emt 0:02:38]} 43. h6 {[%emt 0:00:32]} 1-0

[Event "Cracovia Festival-A 2023"]
[Site "Krakow"]
[Date "2023.12.30"]
[Round "4.14"]
[White "Kulkarni Bhakti"]
[Black "Aakash Sharadchandra, Dalvi"]
[Result "1/2-1/2"]
[ECO "D30"]
[WhiteElo "2364"]
[BlackElo "2130"]
[Annotator "ChessBase"]
[PlyCount "37"]
[EventDate "2023.12.24"]
[EventType "swiss"]
[EventCountry "POL"]
[SourceTitle "playchess.com"]
[Source "ChessBase"]
[SourceQuality "1"]
[TimeControl "40/5400+30:1800+30"]

1. d4 {[%emt 0:02:13]} d5 {[%emt 0:00:08]} 2. c4 {[%emt 0:01:02]} e6 {[%emt 0:00:07]} 3. g3 {[%emt 0:01:02]} dxc4 {[%emt 0:00:41]} 4. Bg2 {[%emt 0:01:07]} c5 {[%emt 0:00:31]} 5. Nf3 {[%emt 0:01:35]} Nc6 {[%emt 0:00:13]} 6. O-O {[%emt 0:04:00]} cxd4 {[%emt 0:02:42]} 7. Qa4 {[%emt 0:01:30]} Bd7 {[%emt 0:03:59]} 8. Qxc4 {[%emt 0:00:12]} e5 {[%emt 0:00:58]} 9. Ng5 {[%emt 0:02:15]} Nh6 {[%emt 0:04:53]} 10. Bd5 {[%emt 0:15:15]} Qe7 {[%emt 0:01:02]} 11. Bd2 {[%emt 0:09:18]} f6 {[%emt 0:21:53]} 12. Ne6 {[%emt 0:07:04]} Rc8 {[%emt 0:02:50]} 13. Qb3 {[%emt 0:06:11]} Nf5 {[%emt 0:06:45]} 14. Na3 {[%emt 0:08:37]} Nb4 {[%emt 0:23:23]} 15. Bc4 {[%emt 0:05:44]} a5 {[%emt 0:05:37]} 16. Nxf8 {[%emt 0:10:32]} Kxf8 {[%emt 0:04:25]} 17. Nb5 {[%emt 0:01:34]} g5 {[%emt 0:02:57]} 18. a3 {[%emt 0:03:39]} Nc6 {[%emt 0:00:12]} 19. e4 {[%emt 0:07:20]} 1/2-1/2